bitfinex-derivatives/quotes_BTCF0:USTF0_20250313
["timestamp","ask_amount","ask_price","bid_price","bid_amount"]
[1741865313365,0.3411734,82842.0,82841.0,0.16041602]
[1741865314158,0.3411734,82842.0,82841.0,0.03968112]
[1741865314656,0.3411734,82842.0,82841.0,0.16041602]
[1741865315965,0.3411734,82842.0,82841.0,0.03968112]
[1741865316158,0.3411734,82842.0,82841.0,0.16041602]
[1741865316565,0.3411734,82842.0,82841.0,0.19711602]
[1741865319766,0.3411734,82842.0,82841.0,0.16041602]
[1741865320467,0.3411734,82842.0,82841.0,0.03968112]
[1741865320767,0.35224684,82842.0,82841.0,0.03968112]
[1741865321168,0.35224684,82842.0,82841.0,0.07958112]
[1741865321767,0.3041734,82842.0,82841.0,0.20031602]
[1741865321975,0.3040134,82842.0,82841.0,0.23901602]
[1741865322169,0.1657334,82842.0,82841.0,0.23901602]
[1741865322871,0.007,82842.0,82841.0,0.23901602]
[1741865323171,0.1277334,82842.0,82841.0,0.23901602]
[1741865323574,0.007,82842.0,82841.0,0.23901602]
[1741865329462,0.1277334,82842.0,82841.0,0.23901602]
[1741865330067,0.13972361,82842.0,82841.0,0.11828112]
[1741865330269,0.21942361,82842.0,82841.0,0.11828112]
[1741865330972,0.21942361,82842.0,82841.0,0.07958112]
[1741865331161,0.35762361,82842.0,82841.0,0.03968112]
[1741865331470,0.35762361,82842.0,82841.0,0.00018112]
[1741865334777,0.37633417,82842.0,82841.0,0.12091602]
[1741865335877,0.37633417,82842.0,82841.0,0.00018112]
[1741865336265,0.37633417,82842.0,82841.0,0.04078112]
[1741865336471,0.37633417,82842.0,82841.0,0.20011602]
[1741865337773,0.37633417,82842.0,82841.0,0.04078112]
[1741865338177,0.31762361,82842.0,82841.0,0.04078112]
[1741865338383,0.31762361,82842.0,82841.0,0.00018112]
[1741865339572,0.120748,82832.0,82831.0,0.1575493]
[1741865339778,0.1207509,82830.0,82829.0,0.0397]
[1741865339968,0.1207509,82830.0,82829.0,0.0774]
[1741865340164,0.1995509,82830.0,82829.0,0.0774]
[1741865340377,0.1995509,82830.0,82829.0,0.1981523]
[1741865340571,0.1615509,82830.0,82829.0,0.2354523]
[1741865341679,0.1625509,82830.0,82829.0,0.2354523]
[1741865342282,0.1217509,82830.0,82829.0,0.2354523]
[1741865342482,0.2599109,82830.0,82829.0,0.2354523]
[1741865342780,0.13916,82830.0,82829.0,0.2354523]
[1741865342982,0.2599109,82830.0,82829.0,0.2354523]
[1741865343476,0.2609109,82830.0,82829.0,0.2354523]
[1741865343985,0.14016,82830.0,82829.0,0.2354523]
[1741865344178,0.002,82830.0,82829.0,0.2354523]
[1741865344383,0.1811142,82837.0,82836.0,0.1207407]
[1741865345177,0.2192142,82837.0,82836.0,0.1990407]
[1741865346083,0.2222142,82837.0,82836.0,0.1990407]
[1741865346783,0.2262142,82837.0,82836.0,0.1990407]
[1741865347986,0.2646142,82837.0,82836.0,0.1990407]
[1741865350688,0.2262142,82837.0,82836.0,0.1990407]
[1741865351177,0.2645142,82837.0,82836.0,0.1990407]
[1741865351772,0.0673706,82837.0,82836.0,0.1990407]
[1741865351980,0.007,82837.0,82836.0,0.1990407]
[1741865354690,0.1277407,82837.0,82836.0,0.1990407]
[1741865355186,0.007,82837.0,82836.0,0.1990407]
[1741865356781,0.14350854,82842.0,82841.0,0.1207349]
[1741865357691,0.17937193,82849.0,82841.0,0.0779]
[1741865357885,0.17937193,82849.0,82848.0,0.1207247]
[1741865358678,0.17937193,82849.0,82848.0,0.1615247]
[1741865358876,0.17937193,82849.0,82848.0,0.2019247]
[1741865359488,0.21525554,82856.0,82852.0,0.060359]
[1741865359788,0.21525554,82856.0,82855.0,0.1207145]
[1741865360782,0.21525554,82856.0,82855.0,0.2019145]
[1741865361579,0.18708281,82856.0,82855.0,0.2019145]
[1741865361791,0.14362504,82862.0,82858.0,0.1207101]
[1741865362790,0.00018112,82864.0,82856.0,0.1207116]
[1741865362791,0.00018112,82864.0,82861.0,0.1207057]
[1741865362987,0.00018112,82864.0,82863.0,0.1207028]
[1741865363682,0.00018112,82864.0,82863.0,0.2055028]
[1741865364286,0.00118112,82864.0,82863.0,0.2055028]
[1741865364690,0.00318112,82864.0,82863.0,0.2055028]
[1741865368481,0.1983005,82878.0,82863.0,0.0848]
[1741865368792,0.1983005,82878.0,82877.0,0.1206824]
[1741865369695,0.1983005,82878.0,82877.0,0.1624824]
[1741865369894,0.2372005,82878.0,82877.0,0.1624824]
[1741865370287,0.24897045,82878.0,82877.0,0.1624824]
[1741865370486,0.24997045,82878.0,82877.0,0.1624824]
[1741865370886,0.24997045,82878.0,82877.0,0.2014824]
[1741865371294,0.18962995,82878.0,82877.0,0.2014824]
[1741865371490,0.05166995,82878.0,82877.0,0.2014824]
[1741865371704,0.0399,82878.0,82877.0,0.2014824]
[1741865372585,0.001,82878.0,82877.0,0.2014824]
[1741865374099,0.0419,82882.0,82881.0,0.1206766]
[1741865375103,0.0419,82882.0,82881.0,0.1997766]
[1741865375399,0.17436482,82882.0,82881.0,0.1601766]
[1741865375896,0.21476482,82882.0,82881.0,0.1997766]
[1741865377707,0.21476482,82882.0,82881.0,0.1601766]
[1741865377998,0.0603409,82878.0,82876.0,0.0603417]
[1741865378203,0.1810233,82878.0,82877.0,0.1206824]
[1741865378407,0.1206868,82874.0,82873.0,0.12086901]
[1741865378706,0.1206868,82874.0,82873.0,0.12086921]
[1741865379102,0.1206848,82876.0,82875.0,0.1206839]
[1741865379396,0.1206848,82876.0,82875.0,0.2029839]
[1741865380397,0.1206848,82876.0,82875.0,0.1625839]
[1741865380599,0.1206868,82874.0,82873.0,0.00018101]
[1741865381804,0.1206868,82874.0,82873.0,0.12086921]
[1741865381993,0.1620853,82875.0,82874.0,0.1206868]
[1741865382197,0.1206853,82875.0,82874.0,0.1610868]
[1741865382394,0.1206853,82875.0,82874.0,0.2035868]
[1741865382804,0.0603419,82877.0,82876.0,0.1206839]
[1741865382998,0.1206824,82878.0,82877.0,0.120681]
[1741865383202,0.2584798,82879.0,82878.0,0.120681]
[1741865383592,0.2584798,82879.0,82878.0,0.205681]
[1741865383797,0.1378,82879.0,82878.0,0.205681]
[1741865384099,0.2584795,82879.0,82878.0,0.205681]
[1741865384297,0.1206795,82879.0,82878.0,0.205681]
[1741865384795,0.0603386,82881.0,82880.0,0.120678]
[1741865386407,0.1980586,82881.0,82880.0,0.120678]
[1741865387607,0.1980586,82881.0,82880.0,0.198278]
[1741865390010,0.2382586,82881.0,82880.0,0.198278]
[1741865390204,0.1810294,82876.0,82875.0,0.1206847]
[1741865391011,0.0603426,82876.0,82875.0,0.1952847]
[1741865391404,0.1394407,82878.0,82877.0,0.1206824]
[1741865391807,0.1005407,82878.0,82877.0,0.1968824]
[1741865392513,0.1384407,82878.0,82877.0,0.1968824]
[1741865394813,0.1005407,82878.0,82877.0,0.1968824]
[1741865395015,0.160881,82878.0,82877.0,0.1968824]
[1741865395312,0.0402,82878.0,82877.0,0.1968824]
[1741865395703,0.2583974,82881.0,82880.0,0.120678]
[1741865395906,0.17442,82881.0,82880.0,0.120678]
[1741865396108,0.2583139,82884.0,82883.0,0.1206737]
[1741865396308,0.2583139,82884.0,82883.0,0.1972737]
[1741865396506,0.2950139,82884.0,82883.0,0.1972737]
[1741865397015,0.30705167,82884.0,82883.0,0.1972737]
[1741865397403,0.16941167,82884.0,82883.0,0.1972737]
[1741865397717,0.13271167,82884.0,82883.0,0.1972737]
[1741865398109,0.17151167,82884.0,82883.0,0.1972737]
[1741865399600,0.20791167,82884.0,82883.0,0.1972737]
[1741865401408,0.24631167,82884.0,82883.0,0.038]
[1741865401605,0.1810229,82878.0,82877.0,0.1206747]
[1741865402112,0.1206868,82874.0,82873.0,0.00018101]
[1741865402306,0.2582868,82874.0,82873.0,0.00018101]
[1741865402504,0.3782868,82874.0,82873.0,0.00018101]
[1741865403115,0.3782868,82874.0,82873.0,0.12086921]
[1741865404005,0.1775,82874.0,82873.0,0.12086921]
[1741865404312,0.1371606,82900.0,82878.0,0.0603397]
[1741865404514,0.3560725,82883.0,82882.0,0.1206751]
[1741865405903,0.3934725,82883.0,82882.0,0.1206751]
[1741865406607,0.3934725,82883.0,82882.0,0.1969751]
[1741865406813,0.0603426,82876.0,82873.0,0.12086271]
[1741865407002,0.1206868,82874.0,82873.0,0.24154941]
[1741865408217,0.1597868,82874.0,82873.0,0.24154941]
[1741865409016,0.0603416,82877.0,82873.0,0.12086271]
[1741865409211,0.1206806,82879.0,82878.0,0.1206795]
[1741865409518,0.1206806,82879.0,82878.0,0.1995795]
[1741865409720,0.1569806,82879.0,82878.0,0.1995795]
[1741865410415,0.06051571,82886.0,82883.0,0.1206737]
[1741865410620,0.2581922,82884.0,82883.0,0.1206737]
[1741865410819,0.47290878,82884.0,82883.0,0.1969737]
[1741865411121,0.21471658,82884.0,82883.0,0.1969737]
[1741865411517,0.33538878,82884.0,82883.0,0.1969737]
[1741865412611,0.33538878,82884.0,82883.0,0.0763]
[1741865412918,0.33738878,82884.0,82883.0,0.1969737]
[1741865413311,0.41498878,82884.0,82883.0,0.1969737]
[1741865414113,0.002,82884.0,82883.0,0.1969737]
[1741865414908,0.1226722,82884.0,82883.0,0.1969737]
[1741865415313,0.002,82884.0,82883.0,0.1969737]
[1741865415919,0.002,82884.0,82883.0,0.20904328]
[1741865417015,0.17981367,82891.0,82890.0,0.1206635]
[1741865417317,0.17981367,82894.0,82888.0,0.0603324]
[1741865417515,0.21981367,82894.0,82893.0,0.1206591]
[1741865418407,0.34047137,82894.0,82893.0,0.1998591]
[1741865418612,0.21981367,82894.0,82893.0,0.1998591]
[1741865419320,0.34047137,82894.0,82893.0,0.1998591]
[1741865419824,0.21981367,82894.0,82893.0,0.1998591]
[1741865420523,0.22918269,82894.0,82893.0,0.1998591]
[1741865421321,0.17002672,82894.0,82893.0,0.1998591]
[1741865421715,0.24912672,82894.0,82893.0,0.0381]
[1741865421911,0.08966902,82894.0,82893.0,0.1587591]
[1741865422120,0.04936902,82894.0,82893.0,0.1587591]
[1741865422417,0.04936902,82894.0,82893.0,0.2335591]
[1741865425419,0.00936902,82894.0,82893.0,0.2335591]
[1741865425619,0.00181033,82901.0,82893.0,0.12469295]
[1741865425824,0.00181033,82901.0,82900.0,0.1206489]
[1741865426020,0.00018101,82902.0,82900.0,0.1206489]
[1741865426220,0.00018101,82902.0,82901.0,0.1206475]
[1741865426420,0.00018101,82902.0,82901.0,0.1592475]
[1741865426624,0.00018101,82902.0,82901.0,0.1984475]
[1741865427530,0.12082701,82902.0,82901.0,0.1984475]
[1741865428527,0.00018101,82902.0,82901.0,0.1984475]
[1741865428728,0.04108101,82902.0,82901.0,0.1984475]
[1741865430133,0.16172701,82902.0,82901.0,0.1984475]
[1741865431534,0.07988101,82902.0,82901.0,0.1984475]
[1741865431727,0.04108101,82902.0,82901.0,0.1984475]
[1741865433337,0.00018101,82902.0,82901.0,0.1984475]
[1741865434932,0.00018101,82902.0,82901.0,0.21055128]
[1741865435434,0.00018101,82902.0,82901.0,0.1984475]
[1741865436024,0.12082701,82902.0,82901.0,0.1984475]
[1741865436437,0.2131682,82902.0,82901.0,0.1984475]
[1741865436732,0.08058101,82902.0,82901.0,0.1984475]
[1741865436933,0.04058101,82902.0,82901.0,0.1984475]
[1741865438141,0.00018101,82902.0,82901.0,0.1984475]
[1741865440838,0.08008101,82902.0,82901.0,0.1984475]
[1741865441039,0.20072701,82902.0,82901.0,0.1984475]
[1741865441333,0.20072701,82902.0,82901.0,0.0778]
[1741865441537,0.24062701,82902.0,82901.0,0.0392]
[1741865442126,0.1206504,82899.0,82898.0,0.1206518]
[1741865442529,0.0603252,82899.0,82870.0,0.060346]
[1741865442732,0.041,82898.0,82886.0,0.0406]
[1741865442931,0.1206591,82893.0,82889.0,0.0603324]
[1741865443133,0.1206591,82893.0,82885.0,0.28841758]
[1741865443439,0.1206591,82893.0,82892.0,0.12084161]
[1741865443826,0.1959591,82893.0,82892.0,0.15984161]
[1741865444031,0.1959591,82893.0,82892.0,0.20034161]
[1741865444434,0.1959591,82893.0,82892.0,0.15984161]
[1741865446029,0.1959591,82893.0,82892.0,0.24034161]
[1741865446739,0.1959591,82893.0,82892.0,0.12084161]
[1741865446936,0.1959591,82893.0,82892.0,0.00018101]
[1741865447640,0.1959591,82893.0,82892.0,0.12084161]
[1741865448141,0.1959591,82893.0,82892.0,0.15854161]
[1741865448545,0.1959591,82893.0,82892.0,0.23484161]
[1741865449945,0.1959591,82893.0,82892.0,0.15854161]
[1741865450745,0.1959591,82893.0,82892.0,0.19884161]
[1741865450944,0.0381,82893.0,82892.0,0.19884161]
[1741865451245,0.17981367,82898.0,82897.0,0.1206533]
[1741865452043,0.17981367,82898.0,82897.0,0.2397533]
[1741865453943,0.00018101,82902.0,82901.0,0.1206475]
[1741865454444,0.12082701,82902.0,82901.0,0.1206475]
[1741865454633,0.12082701,82902.0,82901.0,0.1999475]
[1741865455239,0.00018101,82902.0,82901.0,0.1999475]
[1741865461649,0.1438939,82911.0,82910.0,0.1206344]
[1741865462456,0.1438939,82911.0,82910.0,0.2003344]
[1741865462758,0.17981367,82916.0,82915.0,0.1206271]
[1741865463554,0.17981367,82916.0,82915.0,0.2003271]
[1741865464950,0.00011659,82919.0,82918.0,0.1206227]
[1741865465360,0.17981367,82926.0,82925.0,0.1206126]
[1741865467861,0.0381,82929.0,82928.0,0.1206082]
[1741865468667,0.01204374,82935.0,82934.0,0.1205995]
[1741865468871,0.0602775,82965.0,82929.0,0.0793]
[1741865469172,0.2375718,82953.0,82952.0,0.1205733]
[1741865469872,0.0786,82953.0,82952.0,0.1205733]
[1741865470177,0.0382,82953.0,82952.0,0.1205733]
[1741865470563,0.21471658,82958.0,82953.0,0.1205718]
[1741865470769,0.0386,82957.0,82953.0,0.1205718]
[1741865471169,0.0386,82957.0,82946.0,0.1014905]
[1741865471170,0.0602795,82962.0,82961.0,0.1205602]
[1741865471370,0.0602779,82964.0,82958.0,0.060282]
[1741865471371,0.05034632,82964.0,82958.0,0.060282]
[1741865471671,0.05034632,82964.0,82955.0,0.060284]
[1741865471672,0.17090222,82964.0,82963.0,0.1205573]
[1741865471869,0.1205588,82962.0,82961.0,0.0602794]
[1741865472271,0.0988786,82964.0,82963.0,0.1205573]
[1741865472272,0.0386,82964.0,82963.0,0.1205573]
[1741865472777,0.17981367,82967.0,82961.0,0.0602794]
[1741865472964,0.24981367,82967.0,82966.0,0.1205529]
[1741865473169,0.28841367,82967.0,82964.0,0.0602772]
[1741865473374,0.1205544,82965.0,82964.0,0.0602772]
[1741865473575,0.06028,82962.0,82959.0,0.0412]
[1741865473770,0.1205617,82960.0,82959.0,0.1617631]
[1741865473969,0.0391,82961.0,82959.0,0.1617631]
[1741865474167,0.1596602,82961.0,82960.0,0.1205617]
[1741865474370,0.0391,82961.0,82960.0,0.1205617]
[1741865474675,0.0602765,82966.0,82965.0,0.1205544]
[1741865474882,0.0602765,82966.0,82963.0,0.060278]
[1741865474883,0.1205559,82964.0,82963.0,0.060278]
[1741865476678,0.1205559,82964.0,82961.0,0.1205588]
[1741865476679,0.1205588,82962.0,82961.0,0.0602794]
[1741865476879,0.1205617,82960.0,82959.0,0.0412]
[1741865477080,0.0387,82961.0,82940.0,0.1371606]
[1741865477278,0.1205966,82936.0,82935.0,0.122406]
[1741865477474,0.1205966,82936.0,82935.0,0.1224065]
[1741865477675,0.13277533,82936.0,82935.0,0.0018085]
[1741865478184,0.13277533,82936.0,82935.0,0.1224065]
[1741865478372,0.0387,82936.0,82935.0,0.1224065]
[1741865478985,0.00018052,82944.0,82943.0,0.1205864]
[1741865479380,0.12076542,82944.0,82943.0,0.1205864]
[1741865479782,0.16196542,82944.0,82943.0,0.1205864]
[1741865480487,0.04138052,82944.0,82943.0,0.1215864]
[1741865480675,0.04138052,82944.0,82943.0,0.2010864]
[1741865481084,0.00018052,82944.0,82943.0,0.2010864]
[1741865481586,0.12076542,82944.0,82943.0,0.2010864]
[1741865481773,0.12076542,82944.0,82943.0,0.2000864]
[1741865483585,0.12076542,82944.0,82943.0,0.0389]
[1741865483980,0.12076542,82944.0,82943.0,0.1594864]
[1741865484179,0.16106542,82944.0,82943.0,0.1594864]
[1741865484891,0.04048052,82944.0,82943.0,0.1594864]
[1741865485688,0.16106542,82944.0,82943.0,0.1594864]
[1741865486391,0.04048052,82944.0,82943.0,0.1594864]
[1741865487188,0.00018052,82944.0,82943.0,0.1594864]
[1741865487791,0.12076542,82944.0,82943.0,0.1594864]
[1741865487981,0.00018052,82944.0,82943.0,0.1594864]
[1741865488591,0.1808432,82962.0,82961.0,0.1205529]
[1741865488780,0.3176432,82962.0,82961.0,0.1205529]
[1741865489185,0.32971155,82962.0,82961.0,0.1205529]
[1741865489889,0.1205602,82961.0,82960.0,0.041]
[1741865490089,0.1959602,82961.0,82960.0,0.041]
[1741865490396,0.1959602,82961.0,82960.0,0.1615617]
[1741865491783,0.1205631,82959.0,82958.0,0.0602815]
[1741865491985,0.1205704,82956.0,82955.0,0.1205684]
[1741865492190,0.0602837,82957.0,82953.0,0.0001809]
[1741865492493,0.1205704,82954.0,82953.0,0.1207515]
[1741865492683,0.1205704,82954.0,82953.0,0.1608515]
[1741865492878,0.1993704,82954.0,82953.0,0.1987515]
[1741865494282,0.1599704,82954.0,82953.0,0.1987515]
[1741865495193,0.2967304,82954.0,82953.0,0.1987515]
[1741865495493,0.3369304,82954.0,82953.0,0.1987515]
[1741865495795,0.2967304,82954.0,82953.0,0.1987515]
[1741865496584,0.1599704,82954.0,82953.0,0.1987515]
[1741865496780,0.0394,82954.0,82953.0,0.1987515]
[1741865496985,0.1599704,82954.0,82953.0,0.1987515]
[1741865497996,0.13676,82956.0,82955.0,0.1205689]
[1741865498291,0.0373,82959.0,82958.0,0.1205646]
[1741865498684,0.0602745,82969.0,82968.0,0.0602716]
[1741865498881,0.2569945,82969.0,82968.0,0.0602716]
[1741865499080,0.2569945,82969.0,82967.0,0.0766]
[1741865499081,0.12055,82968.0,82967.0,0.1177]
[1741865499285,0.1205646,82958.0,82957.0,0.1808474]
[1741865499796,0.2411151,82966.0,82965.0,0.1205515]
[1741865499986,0.2572723,82967.0,82965.0,0.0602765]
[1741865500289,0.2572723,82967.0,82966.0,0.1954529]
[1741865500290,0.19672,82967.0,82966.0,0.1954529]
[1741865500492,0.19672,82967.0,82966.0,0.2365529]
[1741865500889,0.3172715,82967.0,82966.0,0.2365529]
[1741865501594,0.3559715,82967.0,82966.0,0.116]
[1741865501790,0.3559715,82967.0,82966.0,0.0411]
[1741865502188,0.3559715,82967.0,82966.0,0.1616529]
[1741865502388,0.3936715,82967.0,82966.0,0.1616529]
[1741865502599,0.3936715,82967.0,82966.0,0.2004529]
[1741865503189,0.3936715,82967.0,82966.0,0.1616529]
[1741865503485,0.3936715,82967.0,82965.0,0.1205539]
[1741865503486,0.27312,82967.0,82962.0,0.0388]
[1741865503689,0.1205573,82963.0,82962.0,0.1598588]
[1741865504088,0.0602779,82965.0,82962.0,0.1598588]
[1741865504285,0.1594515,82967.0,82966.0,0.1205529]
[1741865504485,0.2194515,82967.0,82966.0,0.1205529]
[1741865504696,0.0989,82967.0,82966.0,0.1205529]
[1741865504892,0.0989,82967.0,82966.0,0.1991529]
[1741865505089,0.06,82967.0,82966.0,0.1991529]
[1741865508095,0.1805515,82967.0,82966.0,0.1991529]
[1741865517503,0.2195515,82967.0,82966.0,0.1991529]
[1741865517700,0.2579515,82967.0,82966.0,0.1991529]
[1741865518810,0.1374,82967.0,82950.0,0.21680242]
[1741865519103,0.1374,82967.0,82951.0,0.0385]
[1741865519104,0.0602844,82955.0,82951.0,0.0385]
[1741865519298,0.3359304,82954.0,82953.0,0.1207523]
[1741865520208,0.3359304,82954.0,82953.0,0.1601523]
[1741865521110,0.34801949,82954.0,82953.0,0.0395809]
[1741865521611,0.39001949,82954.0,82953.0,0.0395809]
[1741865522000,0.39001949,82954.0,82953.0,0.1601527]
[1741865522201,0.34801949,82954.0,82953.0,0.1984527]
[1741865522704,0.34801949,82954.0,82953.0,0.0778809]
[1741865523795,0.34801949,82954.0,82953.0,0.1984527]
[1741865524296,0.49216749,82954.0,82953.0,0.1984527]
[1741865525501,0.49216749,82954.0,82953.0,0.0001809]
[1741865525699,0.80116749,82954.0,82953.0,0.0001809]
[1741865526009,0.53116749,82954.0,82953.0,0.0001809]
[1741865526307,0.79116749,82954.0,82953.0,0.0001809]
[1741865526710,0.49216749,82954.0,82953.0,0.1207527]
[1741865527610,0.49216749,82954.0,82953.0,0.1968527]
[1741865528903,0.34801949,82954.0,82953.0,0.1968527]
[1741865529304,0.22744909,82954.0,82935.0,0.0018085]
[1741865529603,0.120582,82946.0,82945.0,0.1589835]
[1741865529801,0.120582,82946.0,82945.0,0.2411835]
[1741865529995,0.197982,82946.0,82945.0,0.1206]
[1741865530198,0.197982,82946.0,82945.0,0.2411835]
[1741865530809,0.257102,82946.0,82945.0,0.2411835]
[1741865531201,0.257102,82946.0,82945.0,0.2421835]
[1741865532202,0.340002,82946.0,82945.0,0.2421835]
[1741865533113,0.48389474,82946.0,82945.0,0.2421835]
[1741865533509,0.44209474,82946.0,82945.0,0.2421835]
[1741865534014,0.48389474,82946.0,82945.0,0.0832]
[1741865534703,0.48389474,82946.0,82945.0,0.2037835]
[1741865534901,0.48389474,82946.0,82945.0,0.0832]
[1741865535514,0.48389474,82946.0,82945.0,0.2037835]
[1741865535716,0.48389474,82946.0,82945.0,0.0832]
[1741865536817,0.48389474,82946.0,82939.0,0.0397]
[1741865537012,0.1205893,82941.0,82940.0,0.0792]
[1741865537621,0.1205893,82941.0,82925.0,0.0603061]
[1741865537622,0.1882,82941.0,82925.0,0.0603061]
[1741865537917,0.1205995,82934.0,82933.0,0.0394]
[1741865538114,0.2530795,82934.0,82933.0,0.0394]
[1741865538515,0.3325795,82934.0,82933.0,0.1600009]
[1741865538916,0.3325795,82934.0,82933.0,0.0394]
[1741865539120,0.3325795,82934.0,82933.0,0.1600009]
[1741865539321,0.3325795,82934.0,82933.0,0.0394]
[1741865539622,0.3325795,82934.0,82933.0,0.0464]
[1741865539810,0.3325795,82934.0,82933.0,0.0846]
[1741865540123,0.3325795,82934.0,82933.0,0.2052009]
[1741865541228,0.1371606,82960.0,82933.0,0.0846]
[1741865541526,0.54873718,82947.0,82946.0,0.1205806]
[1741865542110,0.21471658,82947.0,82946.0,0.1205806]
[1741865542821,0.2513015,82980.0,82953.0,0.0602856]
[1741865543126,0.0409,82977.0,82964.0,0.1205559]
[1741865543420,0.13644,82973.0,82964.0,0.1205559]
[1741865543721,0.13278707,82972.0,82964.0,0.1205559]
[1741865543923,0.1205448,82972.0,82964.0,0.1205559]
[1741865544121,0.16388178,82965.0,82964.0,0.1205559]
[1741865544324,0.16388178,82965.0,82964.0,0.3805559]
[1741865544624,0.16207286,82965.0,82964.0,0.1205559]
[1741865545325,0.002,82965.0,82964.0,0.1205559]
[1741865545825,0.1225544,82965.0,82964.0,0.1205559]
[1741865546421,0.1205544,82965.0,82964.0,0.1205559]
[1741865546622,0.01218707,82978.0,82969.0,0.0602736]
[1741865546828,0.01218707,82978.0,82972.0,0.1205442]
[1741865547029,0.12072358,82973.0,82972.0,0.1205442]
[1741865547629,0.00018078,82973.0,82972.0,0.1205442]
[1741865547921,0.12072358,82973.0,82972.0,0.1205442]
[1741865548925,0.12055,82969.0,82968.0,0.1205491]
[1741865549220,0.12055,82969.0,82967.0,0.1205497]
[1741865549221,0.06028,82962.0,82961.0,0.0602795]
[1741865549419,0.1205564,82964.0,82963.0,0.1205559]
[1741865549625,0.00084,82988.0,82972.0,0.1205442]
[1741865549813,0.13636,82984.0,82972.0,0.1205442]
[1741865550218,0.26906705,82984.0,82972.0,0.1205442]
[1741865550429,0.1205286,82983.0,82972.0,0.1205442]
[1741865550619,0.1205283,82983.0,82972.0,0.1205442]
[1741865550824,0.13270785,82984.0,82972.0,0.1205442]
[1741865551123,0.00180826,82989.0,82972.0,0.1205442]
[1741865551525,0.1205227,82987.0,82972.0,0.1205442]
[1741865551726,0.13636,82988.0,82972.0,0.1205442]
[1741865551934,0.1205339,82980.0,82972.0,0.1205442]
[1741865552122,0.039,82986.0,82972.0,0.1205442]
[1741865552322,0.1205252,82986.0,82972.0,0.1205442]
[1741865552524,0.1205244,82986.0,82972.0,0.1205442]
[1741865552738,0.0391,82987.0,82972.0,0.1205442]
[1741865553031,0.1205263,82985.0,82972.0,0.1205442]
[1741865553217,0.1205271,82984.0,82972.0,0.1205442]
[1741865553419,0.0993615,82987.0,82972.0,0.1205442]
[1741865553622,0.1205264,82985.0,82972.0,0.1205442]
[1741865554028,0.1205306,82982.0,82972.0,0.1205442]
[1741865554227,0.0762,82986.0,82972.0,0.1205442]
[1741865554829,0.0602673,82979.0,82972.0,0.1205442]
[1741865555031,0.0602693,82976.0,82972.0,0.1205442]
[1741865555237,0.12072358,82973.0,82972.0,0.1205442]
[1741865556636,0.00018078,82973.0,82972.0,0.1205442]
[1741865556832,0.12072358,82973.0,82972.0,0.1205442]
[1741865557136,0.00018078,82973.0,82972.0,0.1205442]
[1741865560238,0.00018078,82973.0,82972.0,0.1982442]
[1741865572334,0.00018078,82973.0,82972.0,0.1594442]
[1741865573245,0.12072358,82973.0,82972.0,0.1594442]
[1741865573845,0.23092358,82973.0,82972.0,0.1594442]
[1741865574538,0.23092358,82973.0,82972.0,0.1985442]
[1741865574737,0.24303536,82973.0,82972.0,0.1985442]
[1741865575248,0.24303536,82973.0,82972.0,0.1205442]
[1741865576238,0.24303536,82973.0,82972.0,0.1570442]
[1741865576546,0.24303536,82973.0,82972.0,0.1961442]
[1741865577742,0.24303536,82973.0,82972.0,0.1570442]
[1741865578056,0.24303536,82973.0,82972.0,0.1205442]
[1741865578549,0.24303536,82973.0,82972.0,0.1565442]
[1741865579542,0.24303536,82973.0,82972.0,0.1205442]
[1741865580251,0.24303536,82973.0,82972.0,0.1944442]
[1741865580951,0.12249256,82973.0,82972.0,0.1944442]
[1741865581448,0.24303536,82973.0,82972.0,0.1944442]
[1741865582054,0.24303536,82973.0,82972.0,0.1205442]
[1741865582362,0.24303536,82973.0,82972.0,0.1567442]
[1741865582854,0.24303536,82973.0,82969.0,0.060274]
[1741865583048,0.1808286,82969.0,82968.0,0.0602728]
[1741865583248,0.1808286,82967.0,82966.0,0.1205519]
[1741865583844,0.2541286,82967.0,82966.0,0.1205519]
[1741865584845,0.2541286,82967.0,82966.0,0.1215519]
[1741865586155,0.2541286,82967.0,82966.0,0.1591519]
[1741865586655,0.2541286,82967.0,82966.0,0.1581519]
[1741865587053,0.0733,82967.0,82951.0,0.28841758]
[1741865587250,0.1808462,82959.0,82958.0,0.2411291]
[1741865587657,0.1808462,82959.0,82958.0,0.2788291]
[1741865587851,0.2531462,82959.0,82958.0,0.2788291]
[1741865588355,0.2531462,82959.0,82957.0,0.0378]
[1741865588356,0.1325816,82959.0,82957.0,0.0378]
[1741865588659,0.1325816,82959.0,82956.0,0.00118078]
[1741865588660,0.120566,82957.0,82956.0,0.00118078]
[1741865588853,0.120566,82957.0,82956.0,0.12174778]
[1741865589048,0.192866,82957.0,82956.0,0.12174778]
[1741865589253,0.192866,82957.0,82956.0,0.15944778]
[1741865589454,0.20493211,82957.0,82956.0,0.19734778]
[1741865590659,0.20493211,82957.0,82956.0,0.19634778]
[1741865594157,0.14810611,82957.0,82956.0,0.19634778]
[1741865594363,0.256606,82957.0,82956.0,0.19634778]
[1741865594962,0.13604,82957.0,82956.0,0.19634778]
[1741865595463,0.0376,82961.0,82960.0,0.1205617]
[1741865595757,0.1953602,82961.0,82960.0,0.1205617]
[1741865595957,0.2338602,82961.0,82960.0,0.1934617]
[1741865598762,0.1133,82961.0,82960.0,0.1934617]
[1741865598961,0.2338602,82961.0,82960.0,0.1934617]
[1741865599558,0.2338602,82961.0,82960.0,0.0729]
[1741865599867,0.2338602,82961.0,82960.0,0.1934617]
[1741865600457,0.1133,82961.0,82960.0,0.1934617]
[1741865600755,0.0387,82969.0,82960.0,0.0729]
[1741865600956,0.1728,82968.0,82967.0,0.1205515]
[1741865601161,0.29335,82968.0,82967.0,0.1205515]
[1741865601369,0.33135,82968.0,82967.0,0.1205515]
[1741865602056,0.2108,82968.0,82967.0,0.1205515]
[1741865602258,0.33135,82968.0,82967.0,0.1205515]
[1741865602454,0.19535,82968.0,82967.0,0.1205515]
[1741865602653,0.33135,82968.0,82967.0,0.1205515]
[1741865603163,0.3431984,82968.0,82967.0,0.1205515]
[1741865603368,0.2226484,82968.0,82967.0,0.1205515]
[1741865603558,0.3431984,82968.0,82967.0,0.1205515]
[1741865604568,0.2226484,82968.0,82967.0,0.1205515]
[1741865604769,0.3431984,82968.0,82967.0,0.1205515]
[1741865606369,0.1323984,82968.0,82967.0,0.1205515]
[1741865606571,0.0118484,82968.0,82967.0,0.1205515]
[1741865606767,0.13596,82968.0,82967.0,0.1205515]
[1741865606969,0.00018078,82973.0,82972.0,0.1205442]
[1741865607555,0.00018078,82973.0,82972.0,0.1587442]
[1741865607761,0.12072358,82973.0,82972.0,0.1587442]
[1741865607968,0.00018078,82973.0,82972.0,0.1587442]
[1741865608770,0.12072358,82973.0,82972.0,0.1587442]
[1741865609371,0.19722358,82973.0,82972.0,0.1205442]
[1741865609867,0.00018078,82973.0,82972.0,0.1205442]
[1741865610866,0.00018078,82973.0,82972.0,0.13277709]
[1741865611561,0.00018078,82973.0,82972.0,0.13277588]